Cogmind - Beta 14 @@@ ROGUE MODE // 2024.12.07 @ 18:54:08 Player: willowlium Result: Destroyed by D-53 Grenadier with Mini Grenade Launcher Performance ------------- Evolutions (1) 500 Regions Visited (3) 600 Robots Destroyed (15) 75 Value Destroyed (381) 381 Prototype IDs (2) 40 Alien Tech Used (0) 0 Bonus (0) 0 TOTAL SCORE: 1596 Bonus ------- None Cogmind --------- Core Integrity 0/400 Matter 230/300 Energy 99/100 System Corruption 0% Temperature Cool (0) Movement Core (100) Ox1 Location -9/Mines Parts ------- > --- POWER (1) -------- (None) > --- PROPULSION (4) --- (None) > --- UTILITY (2) ------ Small Storage Unit > --- WEAPON (2) ------- (None) > --- INVENTORY (8) ---- Cryofiber Web Cryofiber Web Improved Targeting Computer Field Laser Field Laser Field Laser Flak Cannon Heavy Hammer Peak State ------------ > --- POWER ------------ Light Ion Engine > --- PROPULSION ------- Improved Hover Unit Improved Hover Unit Improved Hover Unit Improved Hover Unit > --- UTILITY ---------- Cryofiber Web Small Storage Unit > --- WEAPON ----------- Field Laser Field Laser > --- INVENTORY -------- Light Ion Engine Cryofiber Web High-capacity Matter Pod Field Laser Field Laser Flak Cannon Flak Cannon Flak Cannon [Rating: 21] Favorites ----------- Power Improved Ion Engine Engine Improved Ion Engine Propulsion Improved Hover Unit Leg Aluminum Leg Hover Unit Improved Hover Unit Utility Small Storage Unit Device Cryofiber Web Storage Small Storage Unit Protection Propulsion Shielding Weapon Flak Cannon Energy Gun Field Laser Ballistic Gun Assault Rifle Ballistic Cannon Flak Cannon Build | -11 -10 -9 -9 ------- Run | Yrd Mat Mat Min Slots Evolved 2 | . . 2 . Power . | . . . . Propulsion 2 | . . 2 . Utility . | . . . . Weapon . | . . . . Parts Attached 20 | 6 3 10 1 Power 3 | 1 . 2 . Engine 3 | 1 . 2 . Core . | . . . . Reactor . | . . . . Propulsion 6 | 2 2 2 . Treads . | . . . . Leg 2 | 2 . . . Wheel . | . . . . Hover 4 | . 2 2 . Flight . | . . . . Utility 3 | 1 . 2 . Device 1 | . . 1 . Storage 1 | 1 . . . Processor . | . . . . Hackware . | . . . . Protection 1 | . . 1 . Artifact . | . . . . Weapon 8 | 2 1 4 1 Energy Gun 3 | 1 . 2 . Energy Cannon . | . . . . Ballistic Gun 1 | 1 . . . Ballistic Cannon 4 | . 1 2 1 Launcher . | . . . . Special Weapon . | . . . . Impact Weapon . | . . . . Slashing Weapon . | . . . . Piercing Weapon . | . . . . Special Melee Weapon . | . . . . Unidentified Prototypes . | . . . . Parts Lost 6 | . . 1 5 Power 1 | . . . 1 Propulsion 4 | . . 1 3 Utility 1 | . . . 1 Weapon . | . . . . Highest Loss Streak 3 | . . 1 3 To Critical Strikes . | . . . . Average Slot Usage (%) 87 | . 85 97 84 Engine 11 | . 14 11 11 Leg 1 | . 6 . . Hover 31 | . 21 41 31 Storage 11 | . 14 11 11 Protection 7 | . . 8 9 Energy Gun 8 | . 4 11 9 Ballistic Gun 2 | . 14 . . Ballistic Cannon 11 | . 9 10 12 Peak Build Rating 21 | 6 10 21 18 Average Rating 15 | 4 8 18 17 On Entrance 8 | . 6 10 18 Naked Turns . | . . . . Heaviest Build 24 | 11 14 22 24 Greatest Support 28 | 20 20 28 21 Greatest Overweight (x) 1 | . 1 1 1 Average Overweight (x) . | . . . 1 Largest Inventory Capacity 8 | 8 8 8 8 Average Capacity 7 | 6 8 8 8 Most Carried 8 | 2 8 8 8 Average Carried 7 | 1 6 7 8 Final Capacity 8 | 8 8 8 8 Final Carried 8 | 2 8 8 8 Class Distribution -------------------- 100% | Mutant Dominant Class ---------------- Mutant | -10/Materials Mutant | -9/Materials Mutant | -9/Mines Resources | -11 -10 -9 -9 ----------- Run | Yrd Mat Mat Min Matter Collected 524 | 210 71 186 57 Remotely . | . . . . Salvage Created 378 | . 18 280 80 Parts 27 | . 4 20 3 Haulers Intercepted . | . . . . Recyclers Shooed . | . . . . Parts Field Recycled . | . . . . Retrieved Matter . | . . . . Parts Self-Destructed . | . . . . Prevented . | . . . . Kills | -11 -10 -9 -9 ------- Run | Yrd Mat Mat Min Combat Hostiles Destroyed 16 | . . 9 7 Melee 1 | . . . 1 Guns 5 | . . 4 1 Cannons 10 | . . 5 5 Classes Destroyed 8 | . 1 4 3 Tunneler 1 | . . . 1 Operator 2 | . 2 . . Watcher 1 | . . 1 . Swarmer 4 | . . 4 . Grunt 4 | . . 3 1 Duelist 1 | . . . 1 Sentry 2 | . . 2 . Assembled 5 | . . . 5 Best Kill Streak 6 | . 1 6 6 Combat Bots Only 5 | . . 5 5 Max Kills in Single Turn 2 | . 1 2 1 Gunslinging . | . . . . Exploded . | . . . . Melee 1 | . . . 1 Uniques/NPCs Destroyed . | . . . . Combat | -11 -10 -9 -9 -------- Run | Yrd Mat Mat Min Hostile Shots Fired 76 | . . 41 35 Missed 19 | . . 11 8 Damage Taken 1038 | . . 314 724 Core 407 | . . 109 298 Absorbed by Shields . | . . . . Redirected to Shielding 34 | . . 30 4 Core Remaining (%) 100 | 100 100 . . Volleys Fired 31 | . 2 13 16 Largest 2 | . 2 2 2 Hottest 107 | . 59 107 107 Shots Fired 62 | . 4 26 32 Gun 25 | . 2 13 10 Cannon 37 | . 2 13 22 Launcher . | . . . . Special . | . . . . Kinetic 39 | . 4 13 22 Thermal 23 | . . 13 10 Explosive . | . . . . Electromagnetic . | . . . . Robot Hit Streak 6 | . 3 6 6 Robot Miss Streak 8 | . . 8 8 Penetration Max . | . . . . Secondary Targets . | . . . . Shots Hit Robots 40 | . 3 16 21 Core Hits 47 | . 2 22 23 Critical Kills . | . . . . Critical Parts Destroyed . | . . . . Critical Strikes 1 | . . 1 . Burn 1 | . . 1 . Melee Attacks . | . . . . Impact . | . . . . Slashing . | . . . . Piercing . | . . . . Sneak Attacks . | . . . . Combat Hostiles . | . . . . Follow-up Attacks . | . . . . Damage Inflicted 795 | . 48 297 450 Guns 250 | . 30 116 104 Cannons 539 | . 18 181 340 Explosions . | . . . . Melee . | . . . . Ramming 6 | . . . 6 Kinetic 569 | . 48 181 340 Thermal 220 | . . 116 104 Explosive . | . . . . Electromagnetic . | . . . . Impact . | . . . . Slashing . | . . . . Piercing . | . . . . Highest Corruption . | . . . . Average Corruption . | . . . . Corruption Purged . | . . . . Corruption Blocked . | . . . . Overload Shots . | . . . . Overflow Damage . | . . . . Projectiles . | . . . . Explosions . | . . . . Melee . | . . . . Knockbacks 15 | . . 2 13 Impact . | . . . . Kinetic 15 | . . 2 13 Secondary . | . . . . Self-Inflicted Damage 3 | . . . 3 Shots . | . . . . Rammed 1 | . . . 1 Targets Rammed 1 | . . . 1 Kicked . | . . . . Crushed . | . . . . Highest Temperature 308 | . 3 253 308 Average Temperature 124 | . 2 103 156 Received Heat Transfer 129 | . . 129 . Effects 2 | . . 1 1 Energy Bleed 2 | . . 1 1 Siege Activations . | . . . . Robots Corrupted . | . . . . Combat Hostiles . | . . . . Parts Fried . | . . . . Impact Corruptions . | . . . . Robots Melted . | . . . . Combat Hostiles . | . . . . Parts Melted . | . . . . Heat Transferred 555 | . . 333 222 Parts Sabotaged . | . . . . Parts Stolen . | . . . . Parts Stripped . | . . . . Power Chain Reactions . | . . . . Alert | -11 -10 -9 -9 ------- Run | Yrd Mat Mat Min Peak Influence 340 | . 80 340 197 Initial 132 | . . 33 132 Average 98 | . 21 134 121 Maximum Alert Level 1 | . . 1 . Low Security (%) 92 | 100 100 65 100 Level 1 7 | . . 34 . Level 2 . | . . . . Level 3 . | . . . . Level 4 . | . . . . Level 5 . | . . . . High Security . | . . . . Max Security . | . . . . Squads Dispatched 1 | . . 1 . Investigation 1 | . . 1 . Extermination . | . . . . Reinforcement . | . . . . Assault . | . . . . Garrison . | . . . . Intercept . | . . . . Searches Triggered . | . . . . Construction Impeded . | . . . . Haulers Reinforced . | . . . . Active Scanning Responses . | . . . . Cargo Convoy Interrupts . | . . . . Stealth | -11 -10 -9 -9 --------- Run | Yrd Mat Mat Min Distress Signals 1 | . . 1 . Communications Jammed . | . . . . Distress Signals . | . . . . Times Spotted 29 | . 2 14 13 Peak Tracking Total 6 | . 1 6 4 Tactical Retreats 3 | . . 1 2 Traps | -11 -10 -9 -9 ------- Run | Yrd Mat Mat Min Traps Triggered 1 | . . 1 . Indirectly . | . . . . Trap Hack Attempts . | . . . . Triggered . | . . . . Disarmed . | . . . . Reprogrammed . | . . . . Reused . | . . . . Traps Extracted . | . . . . Installed . | . . . . Triggered . | . . . . Machines | -11 -10 -9 -9 ---------- Run | Yrd Mat Mat Min Machines Disabled . | . . . . Max in Single Turn . | . . . . Machines Repaired . | . . . . Machines Dismantled . | . . . . Machines Sabotaged . | . . . . Overloaded Fab Kills . | . . . . Hacking | -11 -10 -9 -9 --------- Run | Yrd Mat Mat Min Machines Accessed 2 | . 2 . . Terminals 2 | . 2 . . Fabricators . | . . . . Repair Stations . | . . . . Recycling Units . | . . . . Scanalyzers . | . . . . Garrison Access . | . . . . Total Hacks 5 | . 5 . . Successful 4 | . 4 . . Failed 1 | . 1 . . Catastrophic . | . . . . Database Lockouts . | . . . . Manual . | . . . . Terminals 5 | . 5 . . Fabricators . | . . . . Repair Stations . | . . . . Recycling Units . | . . . . Scanalyzers . | . . . . Garrison Access . | . . . . Terminal Hacks 4 | . 4 . . Record 1 | . 1 . . Prototype ID Bank 1 | . 1 . . Dispatch Records 1 | . 1 . . Hauler Manifests 1 | . 1 . . Fabricator Hacks . | . . . . Repair Station Hacks . | . . . . Recycling Unit Hacks . | . . . . Scanalyzer . | . . . . Garrison Access Hacks . | . . . . Unauthorized Hacks . | . . . . Terminals . | . . . . Fabricators . | . . . . Repair Stations . | . . . . Recycling Units . | . . . . Scanalyzers . | . . . . Garrison Access . | . . . . Data Cores Recovered 2 | . 2 . . Used . | . . . . Hacking Detections . | . . . . Full Trace Events . | . . . . Feedback Events . | . . . . Feedback Blocked . | . . . . Robot Schematics Acquired . | . . . . Robots Built . | . . . . Authchips . | . . . . Time . | . . . . Total Robot Build Rating . | . . . . Part Schematics Acquired . | . . . . Parts Built . | . . . . Authchips . | . . . . Time . | . . . . Total Part Build Rating . | . . . . Parts Repaired . | . . . . Time . | . . . . Parts Recycled . | . . . . Recycled Matter . | . . . . Retrieved Matter . | . . . . Retrieved Components . | . . . . Parts Scanalyzed . | . . . . Part Schematics Acquired . | . . . . Parts Damaged . | . . . . Bothacking | -11 -10 -9 -9 ------------ Run | Yrd Mat Mat Min Used RIF Installer . | . . . . Robots Hacked . | . . . . Non-combat . | . . . . Combat . | . . . . Robot Hacks Applied . | . . . . Relay Couplers Released . | . . . . Fabnet Peak Effective % . | . . . . Robots Rewired . | . . . . Allies Hacked . | . . . . Hacks Repelled . | . . . . Allies | -11 -10 -9 -9 -------- Run | Yrd Mat Mat Min Total Allies . | . . . . Largest Group . | . . . . Highest-Rated Group . | . . . . Highest-Rated Ally . | . . . . Total Orders . | . . . . Ally Attacks . | . . . . Total Damage . | . . . . Kills . | . . . . Allies Corrupted . | . . . . Allies Melted . | . . . . Intel | -11 -10 -9 -9 ------- Run | Yrd Mat Mat Min Robot Analysis Total . | . . . . Derelict Logs Recovered 1 | . . . 1 Drone Launches . | . . . . Drone Recoveries . | . . . . Exploration | -11 -10 -9 -9 ------------- Run | Yrd Mat Mat Min Turns Passed 1068 | 61 205 240 562 Spaces Moved 1068 | 47 288 315 418 Core 14 | 8 . . 6 Treads . | . . . . Legs 78 | 39 39 . . Wheels . | . . . . Hover 976 | . 249 315 412 Flight . | . . . . Fastest Speed 48 | 50 56 48 100 Average Speed 81 | 108 65 50 112 Slowest Speed 130 | 120 130 112 120 Overloaded Moves . | . . . . Propulsion Burnouts . | . . . . Robots Hopped . | . . . . Cave-ins Triggered . | . . . . Exploration Rate (%) 37 | 4 50 31 64 Regions Visited 3 Branch Regions 1 Pre-discovered Areas . | . . . . Known Exits Taken . | . . . . Unknown Exits Taken 3 | 1 1 1 . Scrap Searched . | . . . . Spaces Dug . | . . . . Terrain Destroyed 1 | . 1 . . Melee . | . . . . Projectile 1 | . 1 . . AOE . | . . . . Terrain Rammed . | . . . . Walls Destroyed . | . . . . Machines Disabled . | . . . . Actions | -11 -10 -9 -9 --------- Run | Yrd Mat Mat Min Total 1203 | 54 298 371 480 Wait 58 | . . 16 42 Move 1065 | 46 287 314 418 Hop . | . . . . Pick Up 17 | 2 6 9 . Fast Attach 7 | 6 . 1 . Attach 2 | . . 2 . Detach . | . . . . Swap 11 | . 3 7 1 Drop 11 | . . 9 2 Fire 31 | . 2 13 16 Melee . | . . . . Ram 1 | . . . 1 Kick . | . . . . Crush . | . . . . Escape Stasis . | . . . . Rewire . | . . . . Trap . | . . . . Miscellaneous . | . . . . Route ------- -11/Scrapyard -10/Materials (discovered 2 exits: *Mat / [*Min]) -9/Materials (discovered 2 exits: [*Mat] / [*Min]) -9/Mines (discovered 2 exits: [*Mat x2]) History --------- Turn | Location | Event 10 | -11/Scrapyard | Discovered new exit (range 13) 62 | -11/Scrapyard | Entered Materials 151 | -10/Materials | Discovered new exit (range 8) 235 | -10/Materials | Discovered new exit (range 8) 267 | -10/Materials | Entered another Materials area 267 | -9/Materials | Evolved 2 slots: Propulsion x2 345 | -9/Materials | Build established: Mutant 370 | -9/Materials | Discovered new exit (range 16) 481 | -9/Materials | Discovered new exit (range 7) 507 | -9/Materials | Entered Mines 614 | -9/Mines | Discovered new exit (range 9) 717 | -9/Mines | Learned location of 1 exit from Lower Caves 734 | -9/Mines | Discovered new exit (range 11) 783 | -9/Mines | Assembled infested the area 788 | -9/Mines | Assisted by a Guerilla fighting off Assembled 1061 | -9/Mines | Core integrity fell below 50% 1065 | -9/Mines | Core integrity fell below 20% 1069 | -9/Mines | Destroyed by D-53 Grenadier with Mini Grenade Launcher Last Messages --------------- 00985_ as-41329 knocked back. 00988_ as-41329 destroyed. 00989_ Overheating: Energy bleed (-58). 00991_ as-80815 destroyed. 00998_ as-52650 knocked back. 00998_ as-04538 knocked back. 01001_ as-04538 destroyed. 01004_ as-52650 knocked back. 01007_ Slammed into as-52650. 01007_ as-52650 destroyed. 01008_ Acquired 10 matter. 01008_ Acquired 7 matter. 01058_ Imp. Hover Unit destroyed. 01058_ Dropped Flak Cannon. 01059_ The unstable cave ceiling collapses. 01059_ Dropped Flak Cannon. 01064_ Imp. Hover Unit destroyed. 01064_ Imp. Ion Engine destroyed. 01066_ R-06 Scavenger destroyed. 01069_ The unstable cave ceiling collapses. Map ----- +----------------------------------------------------+ | | | | | | | ?????????????????????????????????????????????????? | | ?????????????????????????????????????????????????? | | ?????????????????????????????????????????????????? | | ??????????????????????????????????????######?????? | | ??????????????????????###?????????????# ##????? | | ?????????????????????## ###??????????# ?????? | | ?????????????????????# ##????????# #?????? | | ?????????????????????# ##???????# #?????? | | ??????????????????????# #???????# #?????? | | ???????????????????????# #???????## #??????? | | ???????????????????????# #??###### ##???### | | ???????????????????????# #?### ##?## | | ???????????????????????# ### ### | | ????????##########?????## # | | ????????# #??????### ### | | ????????# < #????????### #??### ### | | ????????# #?????????# ] #????####?? | | ????????# #???????### ######????? | | ????????# #??????## #?? | | ????????# """ #??????# %! #?? | | ????????# """ #??????# #### ? | | ????????# """ ######### # #?????#?? | | ????????##### ##### @ [% #???????? | | ????????????# #???#!= % !d ##???????? | | ????????????# #####=%#### ## d #???????? | | ????????????# %%* #?# # ## ##???????? | | ????????????#######% ############ ##????????? | | ???????????????# # ##???##### #?????????? | | ??????# ########### # #??## # ????????? | | ! # ##??# ##???????? | | ?????#%######### ##% # #?## ##????????? | | ???????????????# # ## #?# #?????????? | | ??????????????## # ###?# ## # ??????????? | | ??????????????# ##??## ##?????????????? | | ??????????##### ##??#### ##????????????? | | ??????????# #?????## ##???????????? | | ??????????# #### #??????### ##??????????? | | ??????????# #??## ##??####??## ####???????? | | ??????????# #???## ###??## ###?## ##??????? | | ??????????# #????# ##????# #### #??????? | | ??????????# #????# ##?????#% ## #??????? | | ??????????# #????###??????## ##??????? | | ????????### ####???????????# ###???????? | | ????????# #???????????# [ ##?#####???? | | ????????# #???????????# ## ##?## ##### | | ????????# """ #???????????# ### ##??# ## | | ????????# """ #?#######???# #?#####???# """ | +----------------------------------------------------+ Best States ------------- Heat Dissipation 28 Energy Generation 12 Energy Capacity 265 Matter Stores 300 Matter Capacity 300 Sight Range 16 Terrain Scan Density 10 Base Temperature (-) 100 Propulsion Shielding 33 Evasion (%) 55 Item Schematics ----------------- None Robot Schematics ------------------ None Fabricated ------------ Nothing Alien Tech Used ----------------- None Achievements -------------- None Challenges ------------ None Game ------ Seed ServoShadingFlail Manual? 0 Play Time 00:16:58 Cumulative 10.5 hours Start 2024.12.07 @ 18:38:44 End 2024.12.07 @ 18:54:08 Sessions 1 Manual Loads 0 Difficulty Rogue Special Mode None Game No. 9 Rogue 6 Adventurer 3 Explorer 0 Win Type - Total 0 Types 0/0/0/0/0/0/0/0/0 Lore% 10 Gallery% 15 Achievement% 14 Wizard Run 0 Options --------- Layout 1 ASCII 0 Keyboard 0 Movement Mouse Keybinds 0 Fullscreen 2 Font 24/Smallcaps Map View 50x35 Zoom Use 0% Tactical HUD 1 Map Filters NONE Filters NONE Steam 1 RUN: 8f51d95e-2742-4779-a973-6f95e3e3d348